[Event "26th Hit Open-A 2022"]
[Site "Nova Gorica"]
[Date "2022.09.20"]
[Round "7.23"]
[White "Schloffer, Jasmin-Denise"]
[Black "Acimovic, Vasja"]
[Result "0-1"]
[ECO "D36"]
[WhiteElo "2127"]
[BlackElo "2237"]
[Annotator "TA"]
[PlyCount "86"]
[EventDate "2022.09.16"]
[EventType "swiss"]
[EventCountry "SLO"]
[SourceTitle "playchess.com"]
[Source "ChessBase"]
[SourceQuality "1"]
[TimeControl "5400+30"]

{[%evp 22,86,8,2,0,7,14,0,0,0,6,-6,-4,-13,-3,-20,22,-12,0,0,0,0,12,12,235,237,243,149,147,148,177,181,226,224,317,304,390,406,395,385,405,403,418,398,412,165,171,194,523,288,233,209,226,195,235,33,964,956,920,927,900,902,873,-184,-193,-3479,-3154]} 1. d4 {[%emt 0:00:03]} Nf6 {[%emt 0:00:12]} 2. c4 {[%emt 0:00:06]} e6 {[%emt 0:00:06]} 3. Nc3 {[%emt 0:00:05]} d5 {[%emt 0:00:05]} 4. cxd5 {[%emt 0:00:05]} exd5 {[%emt 0:00:06]} 5. Bg5 {[%emt 0:00:05]} Be7 {[%emt 0:00:09]} 6. e3 {[%emt 0:00:06]} c6 {[%emt 0:00:04]} 7. Qc2 {[%emt 0:00:05]} O-O {[%emt 0:00:08]} 8. Bd3 {[%emt 0:00:04]} Nbd7 {[%emt 0:00:06][%cal Bb8d7,Bd7f8,Bf8e6][%mdl 32]} 9. Nge2 {[%emt 0:00:06]} Re8 {[%emt 0:00:16]} 10. O-O {[%emt 0:00:06]} Nf8 {[%emt 0:00:17]} 11. f3 {[%emt 0:00:15]} g6 $1 {[%emt 0:00:56][%mdl 4] now scores much better than the old 11...Be6.} 12. Bh4 {[%emt 0:00:30]} Ne6 {[%emt 0:00:30] D36: Queen's Gambit Declined: Exchange Variation: Main line (5 Bg5 c6 6 Qc2).} 13. Rad1 {[%emt 0:01:04]} b5 {[%emt 0:01:03][%cal Bb7b5,Bb5b4][%mdl 32]} 14. Bf2 {[%emt 0:01:36]} Bb7 {[%emt 0:00:18] The position is equal.} 15. Kh1 {[%emt 0:00:08]} Rc8 {[%emt 0:00:12]} 16. Qd2 {[%emt 0:13:49]} b4 {[%emt 0:09:11]} 17. Na4 {[%emt 0:02:07]} Qa5 {[%emt 0:00:06]} 18. b3 {[%emt 0:00:29] [#]} Nd7 $146 {[%emt 0:02:51]} ({Predecessor:} 18... c5 19. dxc5 Nxc5 20. Nxc5 Bxc5 21. Rfe1 Qb6 22. Nd4 Bxd4 23. exd4 a5 24. Qf4 Ba6 25. Bxa6 Qxa6 {0-1 (51) McMahon,D (2120)-Campora,D (2417) Seville 2019}) 19. e4 {[%emt 0:06:02]} Nb6 {[%emt 0:02:05]} 20. Nxb6 {[%emt 0:03:58]} Qxb6 {[%emt 0:00:20]} 21. e5 {[%emt 0:03:10]} c5 {[%emt 0:09:53]} 22. f4 {[%emt 0:05:48]} cxd4 $2 {[%emt 0:26:53]} (22... c4 $1 $11 {and Black has nothing to worry.} 23. bxc4 dxc4) 23. f5 $18 {[%emt 0:03:33]} gxf5 {[%emt 0:04:34]} 24. Bxf5 {[%emt 0:01:05] Strongly threatening Qh6.} Bg5 {[%emt 0:00:52] Inhibits Qh6.} 25. Qb2 {[%emt 0:15:17][%cal Re2d4]} Ba6 {[%emt 0:01:56]} 26. Nxd4 {[%emt 0:04:18][%cal Be2d4,Bd4f5,Bf5d6][%mdl 32]} Qc7 {[%emt 0:03:16]} 27. Rfe1 {[%emt 0:02:18]} Qe7 {[%emt 0:05:48]} (27... Qc3 $142 28. Qb1 Kh8 29. Bxh7 Qc7) 28. Qb1 {[%emt 0:01:50]} Rc3 {[%emt 0:04:16]} 29. Bxh7+ {[%emt 0:04:03]} Kh8 {[%emt 0:00:05]} 30. Nf5 {[%emt 0:02:51][%csl LRd5,LRe7]} Qf8 {[%emt 0:00:06]} 31. Nd6 {[%emt 0:00:39]} Re7 {[%emt 0:00:26]} 32. Rxd5 {[%emt 0:07:48]} Rec7 {[%emt 0:05:29]} 33. Rdd1 {[%emt 0:01:21] Against Rc1} (33. Qe4 $142) 33... Qh6 {[%emt 0:01:52]} 34. Bf5 {[%emt 0:04:00]} ({But not} 34. h4 $2 Bxh4 35. Nf5 Rh3+ $3 {[%mdl 512]} 36. gxh3 Bb7+ 37. Re4 (37. Kh2 $2 Qf4+ 38. Bg3 Bxg3+ 39. Nxg3 Qf2#) 37... Qxh7 $19) 34... Kg8 $2 {[%emt 0:02:48]} (34... Bd2) 35. Ne4 {[%emt 0:05:53] And now Nf6+ would win.} Bb7 {[%emt 0:05:47]} 36. Nxc3 {[%emt 0:04:33]} bxc3 {[%emt 0:01:08] [#]} 37. Qc2 $1 {[%emt 0:00:19]} (37. Bxa7 Nf4 38. Rg1 Ne2 $17) 37... Bd2 {[%emt 0:00:41] [#]} 38. Re4 $2 {[%emt 0:03:59]} Qh5 {[%emt 0:02:48][%mdl 8192]} (38... Bxe4 $14 39. Bxe4 (39. Qxe4 $2 c2 $19) 39... Qf4) 39. Rg4+ {[%emt 0:01:48]} Kf8 {[%emt 0:00:16]} 40. Qd3 {[%emt 0:01:50][%cal Of2c5] Bc5+! would kill now.} Bxg2+ {[%emt 0:02:47]} 41. Kg1 {[%emt 0:01:41] White wants to mate with Bc5+.} Bg5 {[%emt 0:03:18][%cal Bd2g5,Bg5e7,Be7b4][%mdl 32]} 42. Qd6+ $4 {[%emt 0:01:08][%mdl 8192]} (42. Bxe6 $18 {and all is fine. Qd6+ is the strong threat.} c2 43. Re1 (43. Qd6+ Be7 $17)) 42... Be7 $19 {[%emt 0:00:30][%mdl 1024] Black has strong compensation. The board is on fire.} 43. Qb4 $2 {[%emt 0:00:18]} (43. Bxe6 Bxd6 44. exd6) 43... Bxb4 {[%emt 0:00:09][%mdl 64] Pin. Quite a comeback for Black.  Weighted Error Value: White=0.67/Black=0.39} 0-1

[Event "26th Hit Open-A 2022"]
[Site "Nova Gorica"]
[Date "2022.09.20"]
[Round "7.24"]
[White "Krivenko, Dion"]
[Black "Garsky, Vladyslav"]
[Result "0-1"]
[ECO "C00"]
[WhiteElo "2113"]
[BlackElo "2229"]
[Annotator "TA"]
[PlyCount "120"]
[EventDate "2022.09.16"]
[EventType "swiss"]
[EventCountry "SLO"]
[SourceTitle "playchess.com"]
[Source "ChessBase"]
[SourceQuality "1"]
[TimeControl "5400+30"]

{[%evp 16,120,8,-6,-2,-35,-28,-31,-26,-35,-36,-23,22,0,-12,-20,-25,-37,-34,-7,7,-18,20,-24,48,33,55,39,52,-61,27,4,54,-88,29,-28,0,5,5,-54,-35,-53,-28,-111,-113,-116,-129,-111,-116,-132,-113,-148,-145,-128,-75,-111,-110,-106,-86,-118,-45,-56,-58,-170,-138,-167,-147,-207,-133,-137,-125,-209,-210,-213,-156,-163,-159,-163,-163,-166,-172,-128,-79,-79,-79,-75,-74,-161,0,-214,-8,-323,-8,-8,-8,-5522,-2382,-5293,-5027,-29976,-29976,-29977,-29978,-29978,-29979,-29979,-29979]} 1. e4 {[%emt 0:00:19]} e6 {[%emt 0:00:15]} 2. d3 {[%emt 0:00:54]} d5 {[%emt 0:00:14]} 3. Nd2 {[%emt 0:00:41]} c5 {[%emt 0:00:39]} 4. Ngf3 {[%emt 0:00:08]} Nf6 {[%emt 0:00:48]} 5. g3 {[%emt 0:00:08]} Nc6 {[%emt 0:00:13]} 6. Bg2 {[%emt 0:00:05]} Be7 {[%emt 0:00:11]} 7. O-O {[%emt 0:00:11]} b6 {[%emt 0:01:43]} 8. Re1 {[%emt 0:00:28]} Bb7 {[%emt 0:00:24]} 9. a3 {[%emt 0:00:47]} O-O {[%emt 0:01:34] C00: French: Unusual White 2nd moves.} 10. e5 {[%emt 0:02:56]} Nd7 {[%emt 0:01:30]} 11. h4 {[%emt 0:05:20][%cal Bh2h4,Bh4h5][%mdl 32]} Qc7 {[%emt 0:01:45][%cal Rc6e5] Black is slightly better.} 12. Qe2 {[%emt 0:00:46]} Rac8 {[%emt 0:04:18]} 13. c3 {[%emt 0:03:46] [#]} Na5 $146 {[%emt 0:07:37]} ({Predecessor:} 13... b5 14. Nf1 a5 15. Bf4 b4 16. Ne3 d4 17. Nd5 exd5 18. e6 Bd6 19. Bxd6 Qxd6 20. exd7 Qxd7 21. cxd4 cxd4 {1-0 (60) Charon Mustelier,M (2149)-Lavigne Lopez,R (2155) Santiago de Cuba 2018}) 14. h5 {[%emt 0:01:28][%cal Oh5h6]} h6 {[%emt 0:02:22]} 15. Rb1 {[%emt 0:01:18]} b5 {[%emt 0:08:08][%cal Bb6b5,Bb5b4][%mdl 32]} 16. Nf1 {[%emt 0:03:05]} b4 {[%emt 0:02:01]} 17. N1h2 {[%emt 0:00:51]} Rfe8 {[%emt 0:13:21]} 18. Ng4 {[%emt 0:06:58][%cal Oc1h6] Hoping for Bxh6!} Bf8 {[%emt 0:01:03]} 19. Bf4 {[%emt 0:01:28]} Qd8 {[%emt 0:01:30]} (19... bxa3 $11 20. bxa3 Rb8) 20. Qd2 $14 {[%emt 0:11:40][%cal Ra3b4]} Nb3 {[%emt 0:06:04]} 21. Qd1 {[%emt 0:00:40]} Na5 {[%emt 0:00:24]} 22. Ngh2 {[%emt 0:04:47]} (22. Qc1 $14) 22... Nc6 {[%emt 0:08:13]} (22... bxa3 $15 23. bxa3 c4) 23. g4 {[%emt 0:06:39]} f6 {[%emt 0:01:36]} (23... a5 $11) 24. d4 {[%emt 0:02:09]} (24. exf6 $1 $14 {stays ahead.} Nxf6 25. axb4) 24... Qe7 {[%emt 0:02:22]} (24... cxd4 $17 {Strongly threatening ...fxe5.} 25. cxd4 fxe5 26. Nxe5 Ncxe5 27. dxe5 Bc5) 25. Nh4 {[%emt 0:07:49]} (25. axb4 $142 fxe5 26. dxe5) 25... cxd4 {[%emt 0:05:53]} 26. Ng6 {[%emt 0:02:53]} Qf7 {[%emt 0:00:13]} 27. cxd4 {[%emt 0:02:31]} (27. exf6 $11 dxc3 28. bxc3) 27... fxe5 $15 {[%emt 0:00:16]} 28. dxe5 {[%emt 0:01:30]} Bc5 {[%emt 0:01:08]} 29. Nf3 {[%emt 0:02:03]} (29. Be3 $11) 29... Nf8 $17 {[%emt 0:04:52]} (29... bxa3 $6 30. bxa3 Nf8 31. Be3 Bxa3 32. Qd3 $15) 30. Nfh4 {[%emt 0:04:43]} Nxg6 {[%emt 0:00:31]} (30... bxa3 31. bxa3 Ba6 32. Bf1 Bxf1 33. Rxf1 $15) 31. Nxg6 {[%emt 0:00:03] [#]} Ne7 $1 {[%emt 0:00:31]} (31... bxa3 $6 32. bxa3 Ba8 33. Be3 $11) 32. Nxe7+ {[%emt 0:00:25]} Rxe7 {[%emt 0:01:43]} (32... Bxe7 33. Be3 $15) 33. Bg3 {[%emt 0:08:04]} bxa3 {[%emt 0:05:16]} 34. bxa3 {[%emt 0:01:10]} Ba6 {[%emt 0:00:09]} (34... Rec7 $142 35. a4 Bb6) 35. Rb3 {[%emt 0:04:40]} Rb7 {[%emt 0:01:43]} 36. Rf3 {[%emt 0:01:42]} Qe7 {[%emt 0:00:16] Black is more active.} 37. Qc2 {[%emt 0:06:14]} Bc4 {[%emt 0:04:27]} (37... Rbc7 $17 {[%cal Oc5b4] ...Bb4! is the strong threat.} 38. Qg6 Bb5) 38. Qg6 $15 {[%emt 0:00:33]} Qe8 {[%emt 0:01:11]} 39. Qc2 {[%emt 0:03:39]} (39. Bf1 $15) 39... Rcb8 {[%emt 0:01:31]} 40. Bf1 {[%emt 0:00:04]} Rb2 {[%emt 0:02:21]} 41. Qc1 {[%emt 0:00:00]} (41. Qd1 $17 {keeps fighting.}) 41... R2b3 {[%emt 0:01:21]} 42. Rxb3 {[%emt 0:03:27]} Rxb3 {[%emt 0:00:05]} 43. Bf4 {[%emt 0:00:57]} (43. Kg2 $17 {is a better defense.} Bxa3 44. Qc2) 43... Bxa3 $19 {[%emt 0:02:55]} 44. Qc2 {[%emt 0:00:44]} Bb4 {[%emt 0:01:52]} 45. Re3 {[%emt 0:01:36]} (45. Bxc4 $2 Rc3 46. Bb5 Rxc2 $19) 45... Rxe3 {[%emt 0:02:31]} 46. Bxe3 {[%emt 0:00:01]} Bxf1 {[%emt 0:00:30]} 47. Kxf1 {[%emt 0:00:02][%mdl 4096] Endgame KQB-KQB} a5 {[%emt 0:00:09]} 48. f4 {[%emt 0:00:24]} Qb5+ {[%emt 0:01:10]} ({Better is} 48... a4 {Threatens to win with ...Qb5+.} 49. Kg2 Qa8) 49. Kf2 $17 {[%emt 0:00:24]} Qc4 {[%emt 0:00:11] Against Qc8+} 50. Qg6 {[%emt 0:00:18]} d4 {[%emt 0:00:08]} 51. Bd2 {[%emt 0:01:27]} d3 $2 {[%emt 0:02:19]} ({And not} 51... Bxd2 52. Qe8+ Kh7 53. Qg6+ Kh8 54. Qe8+ Kh7 55. Qg6+ Kh8 56. Qe8+ Kh7 $11) (51... Qc8 $19 52. Bxb4 axb4) 52. f5 $2 {[%emt 0:01:01] [#]} Bc5+ $2 {[%emt 0:01:05]} ({Inferior is} 52... Bxd2 53. Qe8+ Kh7 54. Qg6+ Kh8 55. Qe8+ Kh7 56. Qg6+ Kh8 57. Qe8+ Kh7 $11) ({Black should play} 52... exf5 $1 $19 53. Bxb4 axb4 54. Qe8+ Kh7 55. Qg6+ Kh8 56. Qxf5 Qd4+ 57. Ke1 b3 58. Qf8+ Kh7 59. Qf5+ Kg8 60. Qe6+ Kf8 61. Qc8+ Kf7 62. Qb7+ Ke6 63. Qxb3+ Kxe5 64. Qb5+ Kf4 65. Qb8+ Kf3 66. Qb7+ Qe4+ 67. Qxe4+ Kxe4 68. Kd2 Kf4 69. Kxd3 Kg5 70. Ke2 Kxg4 71. Ke3 Kxh5 72. Kf2 g5 73. Kf3 g4+ 74. Kf4 Kh4 75. Kf5 g3 76. Ke5 h5 77. Ke6 Kg4 78. Kf6 h4 79. Kf7 h3 80. Ke7 g2 81. Kf6 g1=Q 82. Ke6 h2 83. Kf6 h1=Q 84. Kf7 Qa7+ 85. Ke6 Qe4+ 86. Kf6 Qf5#) 53. Kf1 $2 {[%emt 0:00:01][%mdl 8192]} (53. Kg3 $11 exf5 54. gxf5) 53... Qd5 $2 {[%emt 0:00:46]} (53... Qb3 $19 {( -> ...Qd1+)} 54. Qe8+ Bf8) 54. Qe8+ $11 {[%emt 0:00:28]} Bf8 {[%emt 0:00:41] And now ...Qf3+ would win. Really sharp!} 55. Qxe6+ $2 {[%emt 0:00:39][%mdl 8192]} (55. Kf2 $11) 55... Qxe6 $19 {[%emt 0:00:07]} 56. fxe6 $11 {[%emt 0:00:01] KB-KB} Bb4 {[%emt 0:00:14]} 57. Ke1 {[%emt 0:00:27]} Kf8 {[%emt 0:00:17] Black mates.} 58. Bxb4+ {[%emt 0:00:55]} axb4 {[%emt 0:00:03]} 59. Kd2 {[%emt 0:00:06]} Ke7 {[%emt 0:00:07]} 60. Kxd3 {[%emt 0:00:14]} Kxe6 {[%emt 0:00:02] Weighted Error Value: White=0.57/Black=0.38} 0-1

[Event "26th Hit Open-A 2022"]
[Site "Nova Gorica"]
[Date "2022.09.20"]
[Round "7.25"]
[White "Saypuri Srithan"]
[Black "Zlatanovic, Marcus"]
[Result "1-0"]
[ECO "B27"]
[WhiteElo "2199"]
[BlackElo "1636"]
[Annotator "TA"]
[PlyCount "77"]
[EventDate "2022.09.16"]
[EventType "swiss"]
[EventCountry "SLO"]
[SourceTitle "playchess.com"]
[Source "ChessBase"]
[SourceQuality "1"]
[TimeControl "5400+30"]

{[%evp 14,77,18,17,29,7,11,9,31,27,19,12,33,-19,149,143,112,5,6,12,9,17,91,75,90,77,83,49,48,47,40,47,37,28,115,114,187,101,218,244,732,728,726,724,700,677,29974,29974,29967,12835,29977,29977,29983,29984,29980,29981,29988,29989,29987,29988,29990,29991,29997,1978,29998,29999]} 1. e4 {[%emt 0:00:17]} c5 {[%emt 0:00:07]} 2. Nf3 {[%emt 0:00:05]} g6 {[%emt 0:00:05]} 3. d4 {[%emt 0:00:02]} cxd4 {[%emt 0:00:04]} 4. Qxd4 {[%emt 0:00:03]} Nf6 {[%emt 0:00:06]} 5. Nc3 {[%emt 0:00:04]} Nc6 {[%emt 0:01:15]} 6. Qa4 {[%emt 0:00:07]} d6 {[%emt 0:04:10]} 7. e5 {[%emt 0:01:07]} dxe5 {[%emt 0:00:39]} 8. Nxe5 {[%emt 0:00:05]} Bd7 {[%emt 0:00:47] B27: Sicilian: 2 Nf3, unusual Black 2nd moves.} 9. Nxd7 {[%emt 0:00:06]} Nxd7 {[%emt 0:01:13]} 10. Bb5 {[%emt 0:00:28]} Qc8 {[%emt 0:00:52] The position is equal.} 11. O-O {[%emt 0:12:47]} Bg7 {[%emt 0:02:13]} 12. Nd5 {[%emt 0:03:23] [#] Hoping for Re1.} (12. Re1 $5 {[%cal Rc3d5]}) 12... e6 $146 {[%emt 0:20:11]} ({Predecessor:} 12... a6 13. Bxc6 bxc6 14. Nb4 Nc5 15. Qxc6+ Qxc6 16. Nxc6 Rc8 17. Nb4 e6 18. c3 a5 19. Nc2 O-O 20. Rb1 {½-½ (20) Dedebas,E (2355)-Cirovic,M (2229) Djenovici 2019}) 13. Nb4 {[%emt 0:06:13]} (13. Re1 $14) 13... Nxb4 $2 {[%emt 0:01:04]} (13... Nd4 $11) 14. Qxb4 $16 {[%emt 0:00:05]} a6 {[%emt 0:00:31]} 15. Bxd7+ {[%emt 0:02:46]} ({White should play} 15. Bg5 $16 {[%csl Gg5][%cal Rb4e7]} f6 16. Rae1) 15... Qxd7 $11 {[%emt 0:00:08]} 16. Bg5 {[%emt 0:05:13]} f6 {[%emt 0:04:28]} 17. Be3 {[%emt 0:09:43]} Rc8 {[%emt 0:01:15]} (17... a5 $11 18. Qc5 Qc8) 18. Rad1 $36 {[%emt 0:04:08][%mdl 2048] Black is under strong pressure.} Qe7 {[%emt 0:01:18] [#]} 19. Qa4+ {[%emt 0:02:04]} Rc6 {[%emt 0:01:30]} 20. b4 {[%emt 0:03:53] White is much more active. The black rooks are badly placed.} Kf7 {[%emt 0:03:23]} 21. c4 {[%emt 0:08:44] Inhibits b5.} Rd8 {[%emt 0:07:25]} (21... Rxc4 $2 22. Rd7 Rd8 23. Rxe7+ $18) 22. c5 {[%emt 0:12:50]} Rc7 {[%emt 0:05:03]} 23. Bf4 {[%emt 0:15:34]} e5 {[%emt 0:01:19] Black is on the road to losing.} (23... Rcd7 $11 {remains equal.}) 24. Qb3+ $16 {[%emt 0:00:19]} Kf8 {[%emt 0:00:17]} (24... Ke8 $16) 25. Be3 {[%emt 0:00:26]} ({White should try} 25. Rxd8+ $18 Qxd8 26. Be3) 25... Rxd1 {[%emt 0:13:15]} (25... Re8 $16 {was called for.}) 26. Rxd1 $18 {[%emt 0:00:04][%cal Oc5c6] And now c6! would win.} Rd7 $2 {[%emt 0:00:03]} (26... Ke8 27. Qg8+ Qf8 28. Qxh7 (28. Qd5 Qe7 $18) 28... Qf7) 27. c6 {[%emt 0:01:13]} Rxd1+ {[%emt 0:00:18]} 28. Qxd1 {[%emt 0:00:03][%mdl 4096] Endgame Threatens to win with Bc5. KQB-KQB} Qc7 {[%emt 0:00:39]} 29. Bc5+ {[%emt 0:00:20]} Kg8 {[%emt 0:02:24]} 30. Qd5+ {[%emt 0:00:22]} Kh8 {[%emt 0:00:05]} 31. cxb7 {[%emt 0:01:03][%cal Od5d7] Intending Qd7! and mate.} h5 {[%emt 0:00:14]} 32. g3 {[%emt 0:02:00][%cal Bg2g3,Bg3h4][%mdl 32]} h4 {[%emt 0:01:06]} 33. gxh4 {[%emt 0:01:28]} Kh7 {[%emt 0:01:11]} 34. Bd6 {[%emt 0:01:00]} Qc1+ {[%emt 0:00:06]} 35. Kg2 {[%emt 0:00:02]} Qf4 {[%emt 0:00:28]} 36. b8=Q {[%emt 0:00:07]} Qg4+ {[%emt 0:00:15]} 37. Kh1 {[%emt 0:00:44]} Qh3 {[%emt 0:00:05]} 38. Qdg8+ {[%emt 0:00:48]} Kh6 {[%emt 0:00:10] [#]} 39. Qh8+ $3 {[%emt 0:00:04] Weighted Error Value: White=0.15 (very precise) /Black=0.58} 1-0

[Event "26th Hit Open-A 2022"]
[Site "Nova Gorica"]
[Date "2022.09.20"]
[Round "7.27"]
[White "Rozman, Monika"]
[Black "Lohia, Sohum"]
[Result "1/2-1/2"]
[ECO "C54"]
[WhiteElo "2111"]
[BlackElo "2185"]
[Annotator "TA"]
[PlyCount "115"]
[EventDate "2022.09.16"]
[EventType "swiss"]
[EventCountry "SLO"]
[SourceTitle "playchess.com"]
[Source "ChessBase"]
[SourceQuality "1"]
[TimeControl "5400+30"]

{[%evp 9,115,12,11,12,14,10,14,16,12,3,27,16,22,31,25,24,27,27,21,24,25,0,112,0,116,126,111,117,109,95,109,105,106,117,105,89,60,20,27,35,77,75,64,56,31,27,37,13,10,0,0,0,40,34,77,64,78,74,91,87,75,73,72,79,238,87,300,106,277,74,71,71,71,72,78,79,164,158,123,43,43,43,43,31,43,17,17,17,17,17,17,0,20,20,20,17,17,0,0,0,0,0,0,0,0,0,0,0]} 1. e4 {[%emt 0:00:02]} e5 {[%emt 0:00:12]} 2. Nf3 {[%emt 0:00:04]} Nc6 {[%emt 0:00:09]} 3. Bc4 {[%emt 0:00:03]} Nf6 {[%emt 0:00:09]} 4. d3 {[%emt 0:00:04]} Bc5 {[%emt 0:00:10]} 5. c3 {[%emt 0:00:03]} a5 {[%emt 0:00:07]} 6. O-O {[%emt 0:00:13] Black should prevent d4. C54: Giuoco Piano: 4 c3 Nf6, main lines with 5 d4 and 5 d3.} d6 {[%emt 0:00:25]} 7. Re1 {[%emt 0:00:41]} O-O {[%emt 0:00:13]} 8. h3 {[%emt 0:01:27]} h6 {[%emt 0:00:45]} 9. Nbd2 {[%emt 0:00:05]} Re8 {[%emt 0:01:13]} 10. Nf1 {[%emt 0:02:15]} Be6 {[%emt 0:02:55]} 11. Bb5 {[%emt 0:00:08]} Bd7 {[%emt 0:03:32]} 12. Ng3 {[%emt 0:01:11]} Ne7 {[%emt 0:01:57]} 13. Bxd7 {[%emt 0:01:16]} Qxd7 {[%emt 0:00:36] [#]} 14. Nh4 $146 {[%emt 0:01:10]} ({Predecessor:} 14. d4 exd4 15. cxd4 Bb6 16. Nh4 a4 17. Qd3 Rad8 18. Bd2 d5 19. e5 Ne4 20. Nh5 {0-1 (43) Duda,J (2737)-Grischuk,A (2766) Chess.com INT 2018}) 14... Ng6 {[%emt 0:15:52]} 15. Nhf5 {[%emt 0:01:26]} Kh7 {[%emt 0:05:31]} (15... d5 $1 $11 {keeps the balance.}) 16. Qf3 {[%emt 0:04:46]} ({Better is} 16. Nh5 $16 {Strongly threatening Nxf6+.} Nxh5 17. Qxh5) 16... Qe6 {[%emt 0:02:10]} (16... d5 $11) 17. d4 $16 {[%emt 0:07:19]} exd4 {[%emt 0:00:47]} 18. cxd4 {[%emt 0:00:05]} Bb4 {[%emt 0:24:38]} 19. Re2 {[%emt 0:00:27] aiming for a3.} d5 {[%emt 0:01:17][%cal Rd5e4]} 20. e5 {[%emt 0:12:16]} Ng8 {[%emt 0:01:00]} 21. Qd3 {[%emt 0:00:49]} Qa6 {[%emt 0:10:14]} 22. Qe3 {[%emt 0:13:16] White is more active.} c5 {[%emt 0:13:21]} 23. f4 {[%emt 0:00:29]} ({Of course not} 23. dxc5 Rxe5 24. Qd4 Bxc5 25. Qxc5 Rxe2 26. Nxe2 Qxe2 $11) (23. a3 $5 {[%cal Ra3b4]} cxd4 24. Qxd4 $14) 23... cxd4 {[%emt 0:00:50]} 24. Qxd4 {[%emt 0:02:05]} Qc4 {[%emt 0:01:03] White must now prevent ...Bc5.} 25. Qxc4 {[%emt 0:00:20]} (25. Qd1 {with more complications.} N8e7 26. Rc2 Bc5+ 27. Kh2) 25... dxc4 {[%emt 0:00:05]} 26. Nh5 {[%emt 0:03:11]} Bf8 {[%emt 0:04:12]} 27. Rc2 {[%emt 0:01:08]} Nxe5 {[%emt 0:02:49]} 28. fxe5 {[%emt 0:03:22] Nhg3 is the strong threat.} g6 {[%emt 0:00:05]} 29. Nhg3 {[%emt 0:08:07]} gxf5 {[%emt 0:00:09]} 30. Bf4 {[%emt 0:00:10]} Rac8 {[%emt 0:01:20]} 31. Nxf5 {[%emt 0:00:17]} Rc6 {[%emt 0:01:23]} 32. a4 {[%emt 0:04:17]} Bc5+ {[%emt 0:02:14]} 33. Kh1 {[%emt 0:00:37]} Ne7 {[%emt 0:00:43]} 34. Nd6 {[%emt 0:02:04]} Bxd6 {[%emt 0:00:21]} 35. exd6 {[%emt 0:00:01]} Nd5 {[%emt 0:02:06]} 36. Bg3 {[%emt 0:00:25][%cal Oc2e2]} f5 $2 {[%emt 0:02:31] [#]} (36... Kg6 $16) 37. Rd1 $2 {[%emt 0:06:00]} (37. Re2 $1 $18 {[%cal Re2e8][%mdl 512]} Rd8 (37... Rg8 38. Bh4) 38. Rd1) 37... Nf6 {[%emt 0:01:23]} (37... f4 $16 38. d7 (38. Rxd5 fxg3 39. Rc1 Rd8 $11) 38... Rd8) 38. Bh4 $2 {[%emt 0:14:46]} (38. d7 $18 {is more deadly.} Rd8 39. Rcd2) 38... Kg6 $2 {[%emt 0:00:21]} (38... Nd7 $16 {might work better.}) 39. Rf2 $2 {[%emt 0:00:56]} (39. d7 $18 {and the rest is easy. Hoping for Bxf6.} Rd8 40. Rd4) 39... Rd8 {[%emt 0:00:31]} (39... Ne4 $2 {[#]} 40. Rfd2 $1 {[%mdl 512]} Nf6 41. d7 $18) 40. Bxf6 {[%emt 0:01:57]} Kxf6 {[%emt 0:00:01][%mdl 4096] Endgame KRR-KRR} 41. Rd5 {[%emt 0:00:07][%csl LRa5,LRf5]} Rdxd6 {[%emt 0:00:39]} 42. Rxa5 {[%emt 0:01:11]} Ra6 {[%emt 0:00:57]} (42... Kg7 $16) 43. Raxf5+ $18 {[%emt 0:00:09]} ({Don't take} 43. Rfxf5+ $6 Kg6 $14) 43... Kg6 {[%emt 0:00:20]} 44. a5 {[%emt 0:00:20]} ({White should play} 44. R5f4 $16) 44... b6 $1 $14 {[%emt 0:00:28]} 45. axb6 {[%emt 0:00:29]} Raxb6 {[%emt 0:00:05]} 46. Rc5 {[%emt 0:01:27]} Rdc6 {[%emt 0:00:32]} 47. Rxc6+ {[%emt 0:00:25]} Rxc6 {[%emt 0:00:00] KR-KR. The position is equal.} 48. Kh2 {[%emt 0:00:40]} Rb6 {[%emt 0:00:40]} 49. Kg3 {[%emt 0:01:11]} Rb3+ {[%emt 0:00:32]} 50. Kh4 {[%emt 0:01:24]} c3 {[%emt 0:00:19]} 51. bxc3 {[%emt 0:00:05]} Rxc3 {[%emt 0:00:03]} 52. Rf3 {[%emt 0:02:08]} Rc4+ {[%emt 0:00:08]} 53. g4 {[%emt 0:00:44]} h5 {[%emt 0:01:01]} 54. Ra3 {[%emt 0:00:05] Threatens to win with Ra6+.} hxg4 {[%emt 0:00:07]} 55. Ra6+ {[%emt 0:00:10]} Kf5 {[%emt 0:00:22]} 56. Ra5+ {[%emt 0:00:12]} Kg6 {[%emt 0:00:10]} 57. hxg4 {[%emt 0:00:07]} Rc6 {[%emt 0:00:07]} 58. Rb5 {[%emt 0:00:12] Black defended with fortune.  Weighted Error Value: White=0.22 (precise) /Black=0.26 (precise)} 1/2-1/2